bitfinex/quotes_BTCUSD_20250616
["timestamp","ask_amount","ask_price","bid_price","bid_amount"]
[1750060777084,0.48133001,107160.0,107150.0,0.36212564]
[1750060778110,0.44165001,107160.0,107150.0,0.36212564]
[1750060778315,0.48133001,107160.0,107150.0,0.36212564]
[1750060779156,0.04935513,107160.0,107150.0,0.5208674]
[1750060779409,0.77207488,107170.0,107160.0,0.21463127]
[1750060779799,0.3401,107170.0,107160.0,0.27973127]
[1750060779997,0.03978,107170.0,107160.0,0.37597303]
[1750060780199,0.0001,107170.0,107160.0,0.37597303]
[1750060780652,0.03978,107170.0,107160.0,0.37597303]
[1750060781120,0.0001,107170.0,107160.0,0.37597303]
[1750060781319,0.03978,107170.0,107160.0,0.37597303]
[1750060781955,0.03978,107170.0,107160.0,0.4511716]
[1750060782158,0.0001,107170.0,107160.0,0.37597303]
[1750060782394,0.03978,107170.0,107160.0,0.52877303]
[1750060783905,0.0001,107170.0,107160.0,0.52877303]
[1750060784076,0.03978,107170.0,107160.0,0.52877303]
[1750060784438,0.0001,107170.0,107160.0,0.96074791]
[1750060784655,0.03978,107170.0,107160.0,0.96074791]
[1750060785459,0.0001,107170.0,107160.0,0.96074791]
[1750060785872,0.03978,107170.0,107160.0,0.96074791]
[1750060786459,0.03978,107170.0,107160.0,0.96274791]
[1750060787641,0.03978,107170.0,107160.0,0.96474791]
[1750060788815,0.0001,107170.0,107160.0,1.26354791]
[1750060789031,0.03978,107170.0,107160.0,1.26354791]
[1750060789434,0.0001,107170.0,107160.0,1.26354791]
[1750060789734,0.03978,107170.0,107160.0,1.26354791]
[1750060790383,0.03978,107170.0,107160.0,1.29808876]
[1750060795547,0.03978,107170.0,107160.0,0.86611388]
[1750060795723,0.03978,107170.0,107160.0,1.29808876]
[1750060797280,0.03978,107170.0,107160.0,1.73006364]
[1750060798311,0.0001,107170.0,107160.0,2.06806364]
[1750060798729,0.0001,107170.0,107160.0,2.07106364]
[1750060799082,0.0001,107170.0,107160.0,1.63908876]
[1750060799286,0.0001,107170.0,107160.0,1.63708876]
[1750060799513,0.0001,107170.0,107160.0,1.20511388]
[1750060799832,0.0001,107170.0,107160.0,1.63708876]
[1750060799972,0.0001,107170.0,107160.0,1.64008876]
[1750060800177,0.0001,107170.0,107160.0,2.07206364]
[1750060800412,0.0001,107170.0,107160.0,2.12206364]
[1750060800615,0.03482314,107190.0,107180.0,0.97260694]
[1750060800853,0.03482314,107190.0,107180.0,1.9303687]
[1750060801023,0.03482314,107190.0,107180.0,1.95920632]
[1750060801626,0.03482314,107190.0,107180.0,1.38416855]
[1750060801831,0.03482314,107190.0,107180.0,1.97194343]
[1750060802448,0.03482314,107190.0,107180.0,2.11566755]
[1750060802725,0.03482314,107190.0,107180.0,2.08882993]
[1750060803283,0.06283428,107190.0,107180.0,2.08882993]
[1750060803456,0.03482314,107190.0,107180.0,2.08882993]
[1750060803656,0.0347365,107190.0,107180.0,2.08882993]
[1750060803973,0.0347365,107190.0,107180.0,2.11670107]
[1750060805270,0.0305065,107190.0,107180.0,2.06670107]
[1750060805517,0.0305065,107190.0,107180.0,2.11670107]
[1750060805788,0.13968,107210.0,107200.0,0.47909203]
[1750060806008,0.13968,107210.0,107200.0,1.52232867]
[1750060806220,0.13968,107210.0,107200.0,1.6530715]
[1750060806221,0.1,107210.0,107200.0,1.6530715]
[1750060806432,0.1,107210.0,107200.0,1.24109662]
[1750060806653,0.1,107210.0,107200.0,1.5203515]
[1750060806861,0.1,107210.0,107200.0,1.22133662]
[1750060807104,0.10004705,107210.0,107200.0,1.6533115]
[1750060807309,0.13972705,107210.0,107200.0,1.6533115]
[1750060807986,0.10004705,107210.0,107200.0,1.6563115]
[1750060808196,0.10004705,107210.0,107200.0,2.3646515]
[1750060808424,0.10004705,107210.0,107200.0,1.77971662]
[1750060808645,0.10004705,107210.0,107200.0,2.4146915]
[1750060808861,0.10004705,107210.0,107200.0,2.4186915]
[1750060809310,0.10004705,107210.0,107200.0,2.4146915]
[1750060809573,0.10004705,107210.0,107200.0,2.4196915]
[1750060810034,0.10004705,107210.0,107200.0,2.4226915]
[1750060810473,0.03964,107230.0,107220.0,0.46451116]
[1750060810692,0.47208631,107230.0,107220.0,0.57529377]
[1750060810918,0.53508631,107230.0,107220.0,0.83544549]
[1750060811136,0.53508631,107230.0,107220.0,0.68240549]
[1750060811360,0.53508631,107230.0,107220.0,0.83556549]
[1750060811576,0.53508631,107230.0,107220.0,0.68240549]
[1750060812007,0.53508631,107230.0,107220.0,0.68640549]
[1750060812450,0.04011143,107230.0,107220.0,0.83952549]
[1750060812890,0.04011143,107230.0,107220.0,0.84252549]
[1750060814115,0.04011143,107230.0,107220.0,0.83952549]
[1750060814413,0.04011143,107230.0,107220.0,0.84052549]
[1750060814675,0.04011143,107230.0,107220.0,0.83652549]
[1750060814907,0.04011143,107230.0,107220.0,1.28504122]
[1750060815143,0.04011143,107230.0,107220.0,0.88326634]
[1750060815361,0.04011143,107230.0,107220.0,1.18206634]
[1750060815803,0.04011143,107230.0,107220.0,1.17906634]
[1750060816272,0.04011143,107230.0,107220.0,1.18606634]
[1750060816734,0.04011143,107230.0,107220.0,1.21726634]
[1750060818064,0.00047143,107230.0,107220.0,1.61804122]
[1750060818302,0.04011143,107230.0,107220.0,1.64914122]
[1750060818535,0.00047143,107230.0,107220.0,1.21716634]
[1750060818753,0.04011143,107230.0,107220.0,1.21716634]
[1750060818971,0.00047143,107230.0,107220.0,1.21716634]
[1750060819190,0.24943143,107240.0,107230.0,0.24509115]
[1750060819414,0.28911854,107240.0,107230.0,0.49553291]
[1750060819639,0.28911854,107240.0,107230.0,0.46493291]
[1750060820339,0.28911854,107240.0,107230.0,0.46593291]
[1750060820659,4.711e-05,107240.0,107230.0,0.54287376]
[1750060820869,0.03968711,107240.0,107230.0,0.54287376]
[1750060821316,0.03968711,107240.0,107230.0,0.54487376]
[1750060821970,0.03968711,107240.0,107230.0,0.51437376]
[1750060822197,0.47166199,107240.0,107230.0,0.51437376]
[1750060822421,0.03968711,107240.0,107230.0,0.51437376]
[1750060823994,0.03968711,107240.0,107230.0,0.54467376]
[1750060824460,4.711e-05,107240.0,107230.0,0.91764721]
[1750060824693,4.711e-05,107240.0,107230.0,0.56447376]
[1750060824924,4.711e-05,107240.0,107230.0,0.41047376]
[1750060825140,4.711e-05,107240.0,107230.0,0.57282937]
[1750060825592,4.711e-05,107240.0,107230.0,0.72099054]
[1750060825809,4.711e-05,107240.0,107230.0,1.15896542]
[1750060825947,4.711e-05,107240.0,107230.0,1.15496542]
[1750060826415,4.711e-05,107240.0,107230.0,1.49896542]
[1750060827279,4.711e-05,107240.0,107230.0,1.49900542]
[1750060830011,4.711e-05,107240.0,107230.0,0.91295054]
[1750060830243,4.711e-05,107240.0,107230.0,1.79760542]
[1750060831566,4.711e-05,107240.0,107230.0,1.45760542]
[1750060835069,0.04044,107250.0,107240.0,0.47901201]
[1750060835306,0.04044,107250.0,107240.0,0.72913377]
[1750060835527,0.04044,107250.0,107240.0,0.89407601]
[1750060836240,0.04044,107250.0,107240.0,1.19287601]
[1750060836494,0.04044,107250.0,107240.0,1.19587601]
[1750060836943,0.04044,107250.0,107240.0,1.22707601]
[1750060837389,0.04044,107250.0,107240.0,1.23007601]
[1750060837871,0.08684,107250.0,107240.0,1.03045516]
[1750060838082,0.51881488,107250.0,107240.0,1.03045516]
[1750060838300,0.51881488,107250.0,107240.0,1.18433516]
[1750060838541,0.51881488,107250.0,107240.0,1.03045516]
[1750060838780,0.51881488,107250.0,107240.0,0.63553516]
[1750060839060,0.47837488,107250.0,107240.0,0.63553516]
[1750060839299,0.51881488,107250.0,107240.0,0.63553516]
[1750060840016,0.51881488,107250.0,107240.0,0.48165516]
[1750060840510,0.51881488,107250.0,107240.0,0.63549516]
[1750060840928,0.08684,107250.0,107240.0,0.63549516]
[1750060841183,0.51881488,107250.0,107240.0,0.63549516]
[1750060844236,0.08684,107250.0,107240.0,0.63549516]
[1750060846318,0.51881488,107250.0,107240.0,0.63549516]
[1750060846816,0.51881488,107250.0,107240.0,0.63581516]
[1750060847269,0.04044,107250.0,107240.0,0.48165516]
[1750060847499,0.4567575,107260.0,107250.0,0.21445116]
[1750060847500,0.04038262,107260.0,107250.0,0.21445116]
[1750060847714,0.5128446,107260.0,107250.0,0.31069292]
[1750060847897,0.5128446,107260.0,107250.0,0.47366264]
[1750060849182,0.4724046,107260.0,107250.0,0.47366264]
[1750060849432,0.06536972,107260.0,107250.0,0.47566264]
[1750060849632,0.4973446,107260.0,107250.0,0.47566264]
[1750060850283,0.06536972,107260.0,107250.0,0.47566264]
[1750060850502,0.4973446,107260.0,107250.0,0.47566264]
[1750060851876,0.06536972,107260.0,107250.0,0.47566264]
[1750060852146,0.04976972,107260.0,107250.0,0.47566264]
[1750060852366,0.4413046,107260.0,107250.0,0.47566264]
[1750060852583,0.4817446,107260.0,107250.0,0.47566264]
[1750060852804,0.04976972,107260.0,107250.0,0.74066264]
[1750060854771,0.4817446,107260.0,107250.0,0.74066264]
[1750060854986,0.4817446,107260.0,107250.0,0.72566264]
[1750060855215,0.4817446,107260.0,107250.0,0.87986264]
[1750060855216,0.4969446,107260.0,107250.0,0.87986264]
[1750060856175,0.5122446,107260.0,107250.0,0.37942088]
[1750060856398,0.4718046,107260.0,107250.0,0.53362088]
[1750060856615,0.5122446,107260.0,107250.0,0.53362088]
[1750060857718,0.5122446,107260.0,107250.0,0.37942088]
[1750060857946,0.5122446,107260.0,107250.0,0.53362088]
[1750060860195,0.5122446,107260.0,107250.0,0.53354088]
[1750060860422,0.4718046,107260.0,107250.0,0.53354088]
[1750060860653,0.5123246,107260.0,107250.0,0.53354088]
[1750060861893,0.5123246,107260.0,107250.0,0.53350088]
[1750060862118,0.52164704,107260.0,107250.0,0.53350088]
[1750060862591,0.52164704,107260.0,107250.0,0.53346088]
[1750060862807,0.53096965,107260.0,107250.0,0.53342088]
[1750060863051,0.5123246,107260.0,107250.0,0.53342088]
[1750060863272,0.51223799,107260.0,107250.0,0.53342088]
[1750060863518,0.52156034,107260.0,107250.0,0.53342088]
[1750060863741,0.53088287,107260.0,107250.0,0.53342088]
[1750060865615,0.54020557,107260.0,107250.0,0.53342088]
[1750060866364,0.52156034,107260.0,107250.0,0.53342088]
[1750060866577,0.52156034,107260.0,107250.0,0.53338088]
[1750060866771,0.53088278,107260.0,107250.0,0.53338088]
[1750060867004,0.0989079,107260.0,107250.0,0.53338088]
[1750060867191,0.52156034,107260.0,107250.0,0.53338088]
[1750060867654,0.51223799,107260.0,107250.0,0.53338088]
[1750060871100,0.45641799,107260.0,107250.0,0.53338088]
[1750060871324,0.49693799,107260.0,107250.0,0.53338088]
[1750060872157,0.51233799,107260.0,107250.0,0.53338088]
[1750060873717,0.52166034,107260.0,107250.0,0.53338088]
[1750060873947,0.86166034,107260.0,107250.0,0.53326088]
[1750060874661,0.85233799,107260.0,107250.0,0.53326088]
[1750060874875,0.86166034,107260.0,107250.0,0.53326088]
[1750060875110,0.85233799,107260.0,107250.0,0.53326088]
[1750060875554,0.82173799,107260.0,107250.0,0.53326088]
[1750060875772,0.83106034,107260.0,107250.0,0.53326088]
[1750060875986,0.82173799,107260.0,107250.0,0.53326088]
[1750060876197,0.83673799,107260.0,107250.0,0.53326088]
[1750060877919,0.84606043,107260.0,107250.0,0.37009748]
[1750060878158,0.87088304,107260.0,107250.0,0.53322088]
[1750060878631,0.86156043,107260.0,107250.0,0.53322088]
[1750060879073,0.85223799,107260.0,107250.0,0.53322088]
[1750060880007,0.86156043,107260.0,107250.0,0.53322088]
[1750060880765,0.86156034,107260.0,107250.0,0.53322088]
[1750060881491,0.85223799,107260.0,107250.0,0.53322088]
[1750060881701,0.83673799,107260.0,107250.0,0.53322088]
[1750060881911,0.40476311,107260.0,107250.0,0.53322088]
[1750060882125,0.82173799,107260.0,107250.0,0.53322088]
[1750060883699,0.82177799,107260.0,107250.0,0.53322088]
[1750060884170,0.83110034,107260.0,107250.0,0.53322088]
[1750060885056,0.84042287,107260.0,107250.0,0.53322088]
[1750060885270,0.39912546,107260.0,107250.0,0.54832088]
[1750060885484,0.84042287,107260.0,107250.0,0.54832088]
[1750060885918,0.84042278,107260.0,107250.0,0.54832088]
[1750060887886,0.83110034,107260.0,107250.0,0.54832088]
[1750060888320,0.82177799,107260.0,107250.0,0.54832088]
[1750060888541,0.83110034,107260.0,107250.0,0.54794611]
[1750060888766,0.83110034,107260.0,107250.0,0.5461363]
[1750060888988,0.84042287,107260.0,107250.0,0.5461363]
[1750060889221,0.83110034,107260.0,107250.0,0.5461363]
[1750060890105,0.82177799,107260.0,107250.0,0.5461363]
[1750060890371,0.83110034,107260.0,107250.0,0.5461363]
[1750060890594,0.82137799,107260.0,107250.0,0.5461363]
[1750060892749,0.83070043,107260.0,107250.0,0.5310363]
[1750060892964,0.82137799,107260.0,107250.0,0.5310363]
[1750060893606,0.86310043,107260.0,107250.0,0.53290088]
[1750060894037,0.85377799,107260.0,107250.0,0.53290088]
[1750060894685,0.86310052,107260.0,107250.0,0.53290088]
[1750060894893,0.85377799,107260.0,107250.0,0.53290088]
[1750060895360,0.86310043,107260.0,107250.0,0.53290088]
[1750060896868,0.87242304,107260.0,107250.0,0.53290088]
[1750060897067,0.86310043,107260.0,107250.0,0.37942088]
[1750060897282,0.86310043,107260.0,107250.0,0.53286088]
[1750060897981,1.47221567,107260.0,107250.0,0.16496972]
[1750060898204,1.60949729,107260.0,107250.0,0.002]
[1750060898421,0.0324,107230.0,107220.0,0.20518437]
[1750060898639,0.50453488,107230.0,107220.0,0.35866437]
[1750060898879,0.35865175,107220.0,107210.0,0.18653479]
[1750060899132,0.35865175,107220.0,107200.0,0.21455109]
[1750060899133,0.04368054,107210.0,107200.0,0.21455109]
[1750060899374,0.75122837,107210.0,107200.0,0.36811109]
[1750060899603,0.75663488,107210.0,107200.0,0.36811109]
[1750060899833,0.74093488,107210.0,107200.0,0.36811109]
[1750060900306,0.74093488,107210.0,107200.0,0.36874252]
[1750060900562,0.74093488,107210.0,107200.0,0.37174252]
[1750060901348,0.74093488,107210.0,107200.0,0.37474252]
[1750060905641,0.30896,107210.0,107200.0,0.39214462]
[1750060905868,0.70077488,107210.0,107200.0,0.39214332]
[1750060906091,0.70077488,107210.0,107200.0,0.37474252]
[1750060906092,0.74093488,107210.0,107200.0,0.37474252]
[1750060906528,0.74093488,107210.0,107200.0,0.39214311]
[1750060907423,0.74093488,107210.0,107200.0,0.37474252]
[1750060907877,0.74093488,107210.0,107200.0,0.39214311]
[1750060908088,0.74093488,107210.0,107200.0,0.39201238]
[1750060908312,0.74093488,107210.0,107200.0,0.37474252]
[1750060908741,0.74093488,107210.0,107200.0,0.39201227]
[1750060909222,0.74093488,107210.0,107200.0,0.39201231]
[1750060909448,0.74093488,107210.0,107200.0,0.3920123]
[1750060909650,0.74093488,107210.0,107200.0,0.37474252]
[1750060909863,0.74093488,107210.0,107200.0,0.39201232]
[1750060910083,0.74093488,107210.0,107200.0,0.39201234]
[1750060910301,0.74093488,107210.0,107200.0,0.37474252]
[1750060910552,0.74093488,107210.0,107200.0,0.3920124]
[1750060910781,0.30896,107210.0,107200.0,0.50425397]
[1750060911005,0.30896,107210.0,107200.0,0.52005397]
[1750060911222,0.30896,107210.0,107200.0,0.52005107]
[1750060911459,0.30896,107210.0,107200.0,0.52005059]
[1750060911678,0.30896,107210.0,107200.0,0.50278428]
[1750060911899,0.77197488,107220.0,107210.0,0.23053117]
[1750060912116,0.60892,107230.0,107220.0,0.21451116]
[1750060912337,0.64908,107230.0,107220.0,0.36799116]
[1750060912786,0.64908,107230.0,107220.0,0.38525432]
[1750060913015,0.64908,107230.0,107220.0,0.36799116]
[1750060913267,0.64908,107230.0,107220.0,0.38525362]
[1750060913486,1.08105488,107230.0,107220.0,0.38525361]
[1750060913921,1.08105488,107230.0,107220.0,0.38525368]
[1750060914144,1.08105488,107230.0,107220.0,0.38525348]
[1750060914363,1.08205488,107230.0,107220.0,0.38522076]
[1750060914591,1.08205488,107230.0,107220.0,0.38522083]
[1750060914817,1.08205488,107230.0,107220.0,0.38522093]
[1750060915258,1.08205488,107230.0,107220.0,0.38522147]
[1750060915476,1.08205488,107230.0,107220.0,0.36799116]
[1750060917012,1.04189488,107230.0,107220.0,0.36799116]
[1750060917231,1.08205488,107230.0,107220.0,0.36799116]
[1750060917449,1.08205488,107230.0,107220.0,0.38419116]
[1750060919385,1.04189488,107230.0,107220.0,0.40069116]
[1750060919639,0.60992,107230.0,107220.0,0.49693292]
[1750060919865,0.30992,107230.0,107220.0,0.49693292]
[1750060920768,0.26992,107230.0,107220.0,0.49693292]
[1750060920990,0.30992,107230.0,107220.0,0.49693292]
[1750060922081,0.26992,107230.0,107220.0,0.49693292]
[1750060922300,0.74189488,107230.0,107220.0,0.49693292]
[1750060924821,0.74189488,107230.0,107220.0,0.34345292]
[1750060925031,0.74189488,107230.0,107220.0,0.38455116]
[1750060926127,0.74189488,107230.0,107220.0,0.39965116]
[1750060926522,0.70189488,107230.0,107220.0,0.39965116]
[1750060926753,0.74189488,107230.0,107220.0,0.38455116]
[1750060929337,0.74189488,107230.0,107220.0,0.40005116]
[1750060929956,0.74189488,107230.0,107220.0,0.38455116]
[1750060931686,0.75122001,107230.0,107220.0,0.19585889]
[1750060931921,1.57364577,107230.0,107220.0,0.20518524]
[1750060932163,1.14167089,107230.0,107220.0,0.36815151]
[1750060932429,1.14167089,107230.0,107220.0,0.35882533]
[1750060932644,1.1416708,107230.0,107220.0,0.3868036]
[1750060932856,1.1416708,107230.0,107220.0,0.3774776]
[1750060933091,1.13234532,107230.0,107220.0,0.3868036]
[1750060933300,1.13234523,107230.0,107220.0,0.3868036]
[1750060933890,1.14167054,107230.0,107220.0,0.3868036]
[1750060934111,1.13234523,107230.0,107220.0,0.3868036]
[1750060934799,1.14167063,107230.0,107220.0,0.3868036]
[1750060935269,1.15099611,107230.0,107220.0,0.3868036]
[1750060935490,1.15099611,107230.0,107220.0,0.40413516]
[1750060935712,1.15099611,107230.0,107220.0,0.3868036]
[1750060935954,1.14167063,107230.0,107220.0,0.40413519]
[1750060936200,1.1509962,107230.0,107220.0,0.4041352]
[1750060936428,0.70969575,107230.0,107220.0,0.3868036]
[1750060936653,1.14167063,107230.0,107220.0,0.3868036]
[1750060937685,1.14167063,107230.0,107220.0,0.2331636]
[1750060937904,1.13234523,107230.0,107220.0,0.3866836]
[1750060938579,1.14167071,107230.0,107220.0,0.37735751]
[1750060938840,1.14167063,107230.0,107220.0,0.37735751]
[1750060939071,1.14167063,107230.0,107220.0,0.35870533]
[1750060939307,1.15099629,107230.0,107220.0,0.36803151]
[1750060939964,1.15099629,107230.0,107220.0,0.3680316]
[1750060940576,1.15099629,107230.0,107220.0,0.37735778]
[1750060941439,1.15099629,107230.0,107220.0,0.3680316]
[1750060941653,0.71902141,107230.0,107220.0,0.37735778]
[1750060941888,1.15099629,107230.0,107220.0,0.37735778]
[1750060942339,1.15099629,107230.0,107220.0,0.37735769]
[1750060942574,1.14167063,107230.0,107220.0,0.38668369]
[1750060942796,0.72834697,107230.0,107220.0,0.35870533]
[1750060943022,1.16032177,107230.0,107220.0,0.36803151]
[1750060943722,1.16032177,107230.0,107220.0,0.3773576]
[1750060943965,1.15099611,107230.0,107220.0,0.37735751]
[1750060944199,1.14167063,107230.0,107220.0,0.37735751]
[1750060944428,1.14167063,107230.0,107220.0,0.3773576]
[1750060944927,1.14167054,107230.0,107220.0,0.3866836]
[1750060945139,1.15099602,107230.0,107220.0,0.3866836]
[1750060945360,1.15099602,107230.0,107220.0,0.3773576]
[1750060945579,1.15592168,107230.0,107220.0,0.37735778]
[1750060945822,1.15592168,107230.0,107220.0,0.38668387]
[1750060946041,1.15592159,107230.0,107220.0,0.38668387]
[1750060946261,1.13727054,107230.0,107220.0,0.38668334]
[1750060947550,1.13727054,107230.0,107220.0,0.23316334]
[1750060947819,1.13727054,107230.0,107220.0,0.38676334]
[1750060948029,1.12167054,107230.0,107220.0,0.38676334]
[1750060949323,1.13099602,107230.0,107220.0,0.38676334]
[1750060949752,1.13099594,107230.0,107220.0,0.38676334]
[1750060950071,1.14032151,107230.0,107220.0,0.37743734]
[1750060950503,1.13099594,107230.0,107220.0,0.37743725]
[1750060951638,1.03749488,107230.0,107220.0,0.37743725]
[1750060951850,1.03749488,107230.0,107220.0,0.39383725]
[1750060951851,1.08689993,107230.0,107220.0,0.39383725]
[1750060952068,1.09622515,107230.0,107220.0,0.39383725]
[1750060952283,1.08689993,107230.0,107220.0,0.39383725]
[1750060952495,1.08689993,107230.0,107220.0,0.37743725]
[1750060953571,1.09622515,107230.0,107220.0,0.37743725]
[1750060954005,1.12095055,107230.0,107220.0,0.37743725]
[1750060954543,1.11162515,107230.0,107220.0,0.37743725]
[1750060955118,1.11162515,107230.0,107220.0,0.21451125]
[1750060955337,1.14557594,107230.0,107220.0,0.37711725]
[1750060955590,1.13625046,107230.0,107220.0,0.37711725]
[1750060955802,1.14557586,107230.0,107220.0,0.37711725]
[1750060956452,1.10549586,107230.0,107220.0,0.37711725]
[1750060956670,1.15490143,107230.0,107220.0,0.37711725]
[1750060956888,1.14557586,107230.0,107220.0,0.37711725]
[1750060957106,1.13027586,107230.0,107220.0,0.37711725]
[1750060957548,0.68897558,107230.0,107220.0,0.37711725]
[1750060957777,1.12095046,107230.0,107220.0,0.37711725]
[1750060957991,1.11162515,107230.0,107220.0,0.37711725]
[1750060958821,1.07154515,107230.0,107220.0,0.37711725]
[1750060959051,1.09622515,107230.0,107220.0,0.37711725]
[1750060959303,0.66425027,107230.0,107220.0,0.37711725]
[1750060959533,1.09622515,107230.0,107220.0,0.37711725]
[1750060960102,1.10555055,107230.0,107220.0,0.37711725]
[1750060960326,1.11487603,107230.0,107220.0,0.36779125]
[1750060960540,1.11487603,107230.0,107220.0,0.38644334]
[1750060960797,1.10555055,107230.0,107220.0,0.38644334]
[1750060961475,1.09622515,107230.0,107220.0,0.38644334]
[1750060961698,1.10555046,107230.0,107220.0,0.38644334]
[1750060962208,0.66425027,107230.0,107220.0,0.23316334]
[1750060962419,1.09622515,107230.0,107220.0,0.38652334]
[1750060963060,1.09622515,107230.0,107220.0,0.40389949]
[1750060963310,1.10555055,107230.0,107220.0,0.40389949]
[1750060963493,1.09622515,107230.0,107220.0,0.4038995]
[1750060963742,1.10555055,107230.0,107220.0,0.38652334]
[1750060963952,1.10555055,107230.0,107220.0,0.40389949]
[1750060964169,1.09622515,107230.0,107220.0,0.4038995]
[1750060964410,1.10555046,107230.0,107220.0,0.38652334]
[1750060964623,1.09622515,107230.0,107220.0,0.42039945]
[1750060965058,1.09622506,107230.0,107220.0,0.40302334]
[1750060965279,1.10555046,107230.0,107220.0,0.40302334]
[1750060965497,1.10555037,107230.0,107220.0,0.40302334]
[1750060965717,1.09622506,107230.0,107220.0,0.40302334]
[1750060965920,1.10555037,107230.0,107220.0,0.38652334]
[1750060966142,1.09622506,107230.0,107220.0,0.38652334]
[1750060966371,1.10555037,107230.0,107220.0,0.38652334]
[1750060966618,1.09622506,107230.0,107220.0,0.38652334]
[1750060966841,1.10555037,107230.0,107220.0,0.38652334]
[1750060967928,1.11487585,107230.0,107220.0,0.38652334]
[1750060968150,1.10555037,107230.0,107220.0,0.38652334]
[1750060968991,1.53591383,107230.0,107220.0,0.3922261]
[1750060970535,1.53591383,107230.0,107220.0,0.2388661]
[1750060970755,1.52658852,107230.0,107220.0,0.3920661]
[1750060970978,1.53591383,107230.0,107220.0,0.4085661]
[1750060971596,0.67357549,107230.0,107220.0,0.4085661]
[1750060971807,1.53591383,107230.0,107220.0,0.4085661]
[1750060972008,1.54523931,107230.0,107220.0,0.4085661]
[1750060972224,1.54523931,107230.0,107220.0,0.3920661]
[1750060972926,1.53591383,107230.0,107220.0,0.3920661]
[1750060973327,1.54523923,107230.0,107220.0,0.3920661]
[1750060973501,1.53591383,107230.0,107220.0,0.3920661]
[1750060973659,1.53591383,107230.0,107220.0,0.36408783]
[1750060973873,1.5545648,107230.0,107220.0,0.35476156]
[1750060974082,1.55456471,107230.0,107220.0,0.37341418]
[1750060974293,1.5452401,107230.0,107220.0,0.43341418]
[1750060974848,1.5452401,107230.0,107220.0,0.42408791]
[1750060975076,1.74483793,107230.0,107220.0,0.41476165]
[1750060975316,1.74483793,107230.0,107220.0,0.42408809]
[1750060975557,1.74483793,107230.0,107220.0,0.43341444]
[1750060975789,1.74483793,107230.0,107220.0,0.41476165]
[1750060976017,1.74483793,107230.0,107220.0,0.43341444]
[1750060976333,1.74483793,107230.0,107220.0,0.44274071]
[1750060976545,1.74483793,107230.0,107220.0,0.43341444]
[1750060976956,1.55832297,107230.0,107220.0,0.43341444]
[1750060977170,1.56764871,107230.0,107220.0,0.44274071]
[1750060977578,1.56764871,107230.0,107220.0,0.45206689]
[1750060977761,1.56764871,107230.0,107220.0,0.44274071]
[1750060978874,1.56764871,107230.0,107220.0,0.43341444]
[1750060979080,1.56764871,107230.0,107220.0,0.44274071]
[1750060979281,1.56764871,107230.0,107220.0,0.43341444]
[1750060979497,1.56764871,107230.0,107220.0,0.44274071]
[1750060979968,1.56764871,107230.0,107220.0,0.43341444]
[1750060980407,1.75416367,107230.0,107220.0,0.42408809]
[1750060980634,1.75416367,107230.0,107220.0,0.43341436]
[1750060980855,1.56764871,107230.0,107220.0,0.44274054]
[1750060981286,1.55832297,107230.0,107220.0,0.43341436]
[1750060981503,1.55832297,107230.0,107220.0,0.44274045]
[1750060981716,1.53591444,107230.0,107220.0,0.45894045]
[1750060981955,1.53591444,107230.0,107220.0,0.46826645]
[1750060982175,1.54524018,107230.0,107220.0,0.45894054]
[1750060982403,1.53591444,107230.0,107220.0,0.46826663]
[1750060982618,1.52658887,107230.0,107220.0,0.4589401]
[1750060982834,1.53591444,107230.0,107220.0,0.4589401]
[1750060983040,1.54524018,107230.0,107220.0,0.44961401]
[1750060983380,1.53591444,107230.0,107220.0,0.4589401]
[1750060983567,1.53591444,107230.0,107220.0,0.44961401]
[1750060983998,1.54524018,107230.0,107220.0,0.44028783]
[1750060984230,1.53591444,107230.0,107220.0,0.44961401]
[1750060984766,1.5452401,107230.0,107220.0,0.44961401]
[1750060985026,1.48650887,107230.0,107220.0,0.45894001]
[1750060985249,1.48650887,107230.0,107220.0,0.44961401]
[1750060985250,1.53563444,107230.0,107220.0,0.44961401]
[1750060985470,1.53563444,107230.0,107220.0,0.4589401]
[1750060985697,0.60552,107230.0,107220.0,0.4682661]
[1750060985920,1.08581422,107230.0,107220.0,0.4836661]
[1750060986143,1.07648917,107230.0,107220.0,0.4836661]
[1750060986334,1.08581422,107230.0,107220.0,0.4836661]
[1750060986587,1.04601413,107230.0,107220.0,0.4836661]
[1750060986807,1.08581413,107230.0,107220.0,0.4836661]
[1750060987031,1.03668917,107230.0,107220.0,0.4836661]
[1750060987271,1.07648917,107230.0,107220.0,0.4836661]
[1750060988226,0.001,107230.0,107220.0,1.01107703]
[1750060988441,0.0408,107230.0,107220.0,1.01107703]
[1750060988881,0.001,107230.0,107220.0,1.6922462]
[1750060989101,0.0408,107230.0,107220.0,1.6922462]
[1750060989323,0.0398,107230.0,107220.0,1.26107703]
[1750060989556,1.04004917,107250.0,107240.0,0.24717116]
[1750060989781,0.73984917,107250.0,107240.0,0.49637292]
[1750060990235,0.72502088,107250.0,107240.0,0.49637292]
[1750060990892,0.29385171,107250.0,107240.0,0.49637292]
[1750060991120,0.68493792,107250.0,107240.0,0.49637292]
[1750060991351,0.72473792,107250.0,107240.0,0.49637292]
[1750060991542,0.72573792,107250.0,107240.0,0.49637292]
[1750060995534,0.29485171,107250.0,107240.0,0.49637292]
[1750060995743,0.72573792,107250.0,107240.0,0.49637292]
[1750060998604,0.29485171,107250.0,107240.0,0.49637292]
[1750060999054,0.72573792,107250.0,107240.0,0.49637292]
[1750061000210,0.29485171,107250.0,107240.0,0.51361454]
[1750061000785,0.29485171,107250.0,107240.0,0.49637292]
[1750061003455,0.72573792,107250.0,107240.0,0.49637292]
[1750061003900,0.72573792,107250.0,107240.0,0.47742352]
[1750061004579,0.29485171,107250.0,107240.0,0.47742352]
[1750061004807,0.72573792,107250.0,107240.0,0.47742352]
[1750061005238,0.68593792,107250.0,107240.0,0.47742352]
[1750061005523,0.72573792,107250.0,107240.0,0.47742352]
[1750061008632,0.29485171,107250.0,107240.0,0.47742352]
[1750061008830,0.72573792,107250.0,107240.0,0.47742352]
[1750061010875,0.72572706,107250.0,107240.0,0.47742352]
[1750061011536,0.29485171,107250.0,107240.0,0.47742352]
[1750061011753,0.72572706,107250.0,107240.0,0.47742352]
[1750061013308,0.29485171,107250.0,107240.0,0.47742352]
[1750061013526,0.72572706,107250.0,107240.0,0.47742352]
[1750061013750,0.68592706,107250.0,107240.0,0.47742352]
[1750061013977,0.72572706,107250.0,107240.0,0.47742352]
[1750061016472,0.72572706,107250.0,107240.0,0.32446352]
[1750061016689,0.72572706,107250.0,107240.0,0.46114352]
[1750061016929,0.72572706,107250.0,107240.0,0.44464352]
[1750061016930,1.15660241,107250.0,107240.0,0.44464352]
[1750061017150,1.17160241,107250.0,107240.0,0.34840176]
[1750061017370,1.17160241,107250.0,107240.0,0.19552176]
[1750061017824,1.17160241,107250.0,107240.0,0.34840176]
[1750061018722,0.74072706,107250.0,107240.0,0.34840176]
[1750061021149,0.72572706,107250.0,107240.0,0.34840176]
[1750061021823,0.72572706,107250.0,107240.0,0.36380176]
[1750061022336,0.72572706,107250.0,107240.0,0.34840176]
[1750061023299,0.72572706,107250.0,107240.0,0.36460176]
[1750061025660,0.72572706,107250.0,107240.0,0.34840176]